Workbook

Sheet Reinigungsplan Mustertankstelle
A2: Reinigungsplan Mustertankstelle
A4: Tankstelle 1 mit Shop bis 80 m2 plus Bistro, Waschanlage und 2 SB Waschboxen und 3 SB Sauger
A5: Öffnungszeiten Mo-Fr von 5:00 bis 22:00 Uhr, Sa von 6:00 bis 22:00 Uhr, So von 7:00 bis 21:00 Uhr
S6: Eingabe
B7: in diesen Block den täglichen Zeitaufwand eintragen, | S7: Tätigkeiten
B8: die richtige Farbe zuordnen und "Summen aktualisieren" | M8: Zeitaufwand | P8: Zeitaufwand | S8: 1x/Monat
B9: tägl. | C9: tägl. | D9: tägl. | E9: tägl. | F9: tägl. | G9: tägl. | H9: tägl. | M9: Woche | N9: Woche | P9: Monat | Q9: Monat | S9: 1 x im Monat
B10: Mo | C10: Di | D10: Mi | E10: Do | F10: Fr | G10: Sa | H10: So | M10: Summe in min | N10: Sum in Std | P10: Sum/min | Q10: Sum/Std | S10: Sum/Std
A11: AUSSENANLAGE | B11: =SUM(B12:B24) -> 53 | C11: 53 | D11: 53 | E11: 53 | F11: 53 | G11: 30 | H11: 30 | M11: =SUM(B11:H11) -> 325 | N11: =M11/60 -> 5.416666667 | P11: =(M11*4.32) -> 1404 | Q11: =P11/60 -> 23.4 | S11: 13
A12: Wascheimer,Wasserkanne | B12: 3 | C12: 3 | D12: 3 | E12: 3 | F12: 3 | G12: 3 | H12: 3 | M12: =SUM(B12:H12) -> 21 | N12: 0.35 | P12: =(M12*4.32) -> 90.72 | Q12: 1.512
A13: Papierspender,Handschuhe | B13: 5 | C13: 5 | D13: 5 | E13: 5 | F13: 5 | G13: 5 | H13: 5 | M13: =SUM(B13:H13) -> 35 | N13: 0.5833333333 | P13: 151.2 | Q13: 2.52
A14: Luftprüfer,Feuerlöscher | B14: 2 | C14: 2 | D14: 2 | E14: 2 | F14: 2 | G14: 2 | H14: 2 | M14: =SUM(B14:H14) -> 14 | N14: 0.2333333333 | P14: 60.48 | Q14: 1.008
A15: Zapfinsel/Pumpen | B15: 5 | C15: 5 | D15: 5 | E15: 5 | F15: 5 | M15: 25 | N15: 0.4166666667 | P15: 108 | Q15: 1.8 | S15: 3
A16: Zapfpistolen,Schläuche | B16: 3 | C16: 3 | D16: 3 | E16: 3 | F16: 3 | M16: 15 | N16: 0.25 | P16: 64.8 | Q16: 1.08 | S16: 3
A17: Grünanlage(Unrat/Mähen) | B17: 5 | C17: 5 | D17: 5 | E17: 5 | F17: 5 | M17: 25 | N17: 0.4166666667 | P17: 108 | Q17: 1.8 | S17: 3
M18: 0 | N18: 0 | P18: 0 | Q18: 0
A19: Abfallkübel | B19: 20 | C19: 20 | D19: 20 | E19: 20 | F19: 20 | G19: 20 | H19: 20 | M19: =SUM(B19:H19) -> 140 | N19: 2.333333333 | P19: 604.8 | Q19: 10.08
A20: Staubsauger | B20: 5 | C20: 5 | D20: 5 | E20: 5 | F20: 5 | M20: 25 | N20: 0.4166666667 | P20: 108 | Q20: 1.8 | S20: 1
A21: Fahrbahn | B21: 5 | C21: 5 | D21: 5 | E21: 5 | F21: 5 | M21: 25 | N21: 0.4166666667 | P21: 108 | Q21: 1.8 | S21: 3
M22: 0 | N22: 0 | P22: 0 | Q22: 0
A23: Plakat | M23: 0 | N23: 0 | P23: 0 | Q23: 0
A24: Beleuchtung | M24: 0 | N24: 0 | P24: 0 | Q24: 0
A25: WASCHHALLE | B25: 150 | C25: =SUM(C26:C29) -> 0 | D25: 40 | E25: 0 | F25: 40 | G25: 0 | H25: 0 | M25: =SUM(B25:H25) -> 230 | N25: 3.833333333 | P25: 993.6 | Q25: 16.56 | S25: 7
A26: Waschhalle Boden/Wände | B26: 60 | D26: 15 | F26: 15 | M26: =SUM(B26:H26) -> 90 | N26: 1.5 | P26: =(M26*4.32) -> 388.8 | Q26: 6.48 | S26: 4
A27: Portalmaschine | M27: 0 | N27: 0 | P27: 0 | Q27: 0
A28: SB-Anlage | B28: 60 | D28: 15 | F28: 15 | M28: =SUM(B28:H28) -> 90 | N28: 1.5 | P28: 388.8 | Q28: 6.48 | S28: 3
A29: Chemie SB+Waschanlage | B29: 30 | D29: 10 | F29: 10 | M29: =SUM(B29:H29) -> 50 | N29: 0.8333333333 | P29: =(M29*4.32) -> 216 | Q29: 3.6
A30: WC | B30: 28 | C30: 28 | D30: 28 | E30: 74 | F30: 28 | G30: 9 | H30: 9 | M30: =SUM(B30:H30) -> 204 | N30: 3.4 | P30: 881.28 | Q30: 14.688 | S30: =SUM(S31:S36) -> 0
A31: Toilettpapier | B31: 3 | C31: 3 | D31: 3 | E31: 3 | F31: 3 | G31: 3 | H31: 3 | M31: 21 | N31: 0.35 | P31: 90.72 | Q31: 1.512
A32: Abfalleimer | B32: 3 | C32: 3 | D32: 3 | E32: 3 | F32: 3 | G32: 3 | H32: 3 | M32: 21 | N32: 0.35 | P32: 90.72 | Q32: 1.512
A33: Handtuch,Seife | B33: 3 | C33: 3 | D33: 3 | E33: 3 | F33: 3 | G33: 3 | H33: 3 | M33: 21 | N33: 0.35 | P33: 90.72 | Q33: 1.512
A34: Waschbecken,Spiegel | B34: 5 | C34: 5 | D34: 5 | E34: 5 | F34: 5 | M34: 25 | N34: 0.4166666667 | P34: 108 | Q34: 1.8
A35: WC | B35: 7 | C35: 7 | D35: 7 | E35: 30 | F35: 7 | M35: 58 | N35: 0.9666666667 | P35: 250.56 | Q35: 4.176
A36: Fussboden | B36: 7 | C36: 7 | D36: 7 | E36: 30 | F36: 7 | M36: 58 | N36: 0.9666666667 | P36: 250.56 | Q36: 4.176
A37: SHOP | B37: 40 | C37: 40 | D37: 40 | E37: 40 | F37: 40 | G37: 40 | H37: 40 | M37: 310 | N37: 5.2 | P37: 1339.2 | Q37: 22.32 | S37: =SUM(S38:S41) -> 0
A38: Papierkorb | B38: 10 | C38: 10 | D38: 10 | E38: 10 | F38: 10 | G38: 10 | H38: 10 | M38: 70 | N38: 1.166666667 | P38: 302.4 | Q38: 5.04
A39: Fussboden | B39: 30 | C39: 30 | D39: 30 | E39: 60 | F39: 30 | G39: 30 | H39: 30 | M39: 240 | N39: 4 | P39: 1036.8 | Q39: 17.28
A40: Beleuchtung | M40: 0 | N40: 0 | P40: 0 | Q40: 0
M41: 0 | N41: 0 | P41: 0 | Q41: 0
A42: LAGER-Technik | B42: 10 | C42: 10 | D42: 10 | E42: 10 | F42: 10 | G42: 0 | H42: 0 | M42: =SUM(B42:H42) -> 50 | N42: 0.8333333333 | P42: 216 | Q42: 3.6 | S42: 2.5
A43: Kompressor | M43: 0 | N43: 0 | P43: 0 | Q43: 0 | S43: 0.5
A44: Recycling | M44: 0 | N44: 0 | P44: 0 | Q44: 0 | S44: 0.5
A45: Benzinabscheider | M45: 0 | N45: 0 | P45: 0 | Q45: 0 | S45: 0.5
A46: Lager | B46: 10 | C46: 10 | D46: 10 | E46: 10 | F46: 10 | M46: 50 | N46: 0.8333333333 | P46: =(M46*4.32) -> 216 | Q46: 3.6 | S46: 1
M47: 0 | N47: 0 | P47: 0 | Q47: 0
B49: tägl. | C49: tägl. | D49: tägl. | E49: tägl. | F49: tägl. | G49: tägl. | H49: tägl. | M49: Woche | N49: Woche | P49: Monat | Q49: Monat | S49: 1 x im Monat
B50: Mo | C50: Di | D50: Mi | E50: Do | F50: Fr | G50: Sa | H50: So | M50: Sum/min | N50: Sum/Std | P50: Sum/min | Q50: Sum/Std | S50: Sum/Std
A51: Summe in min /Tag | B51: =B11+B30+B25+B37+B42 -> 281 | C51: 131 | D51: 171 | E51: 207 | F51: =F11+F30+F25+F37+F42 -> 171 | G51: 79 | H51: 79 | M51: 1119 | N51: 18.7 | P51: 4834 | Q51: 80.6 | S51: =S11+S30+S25+S37+S42 -> 22.5
A52: Summe in Std /Tag | B52: =B51/60 -> 4.683333333 | C52: =C51/60 -> 2.183333333 | D52: 2.85 | E52: 3.45 | F52: 2.85 | G52: 1.316666667 | H52: 1.316666667
M53: Woche | N53: Woche | P53: Monat | Q53: Monat | S53: 1 x im Monat
B54: Sum/min | C54: Sum/min | D54: Sum/min | E54: Sum/min | F54: Sum/min | G54: Sum/min | H54: Sum/min | M54: Sum/min | N54: Sum/Std | P54: Sum/min | Q54: Sum/Std | S54: Sum/Std
A55: Kassamitarbeiter in min/Tag | B55: =Summewennfarbe(B12:B47,A63)+(0*NOW()) -> 29 | C55: =Summewennfarbe(C12:C47,A63)+(0*NOW()) -> 29 | D55: =Summewennfarbe(D12:D47,A63)+(0*NOW()) -> 29 | E55: =Summewennfarbe(E12:E47,A63)+(0*NOW()) -> 29 | F55: =Summewennfarbe(F12:F47,A63)+(0*NOW()) -> 29 | G55: 79 | H55: 79 | M55: =SUM(B55:H55) -> 303 | N55: =M55/60 -> 5.05 | P55: =M55*4.32 -> 1308.96 | Q55: =Q12+Q13+Q14+Q22+Q23+Q31+Q32+Q33+Q38+Q19+Q39 -> 41.976 | S55: =Summewennfarbe(S12:S47,A63)+(0*NOW()) -> 0
A56: Beidienst in min /Tag | B56: =Summewennfarbe(B12:B47,A64)+(0*NOW()) -> 102 | C56: =Summewennfarbe(C12:C47,A64)+(0*NOW()) -> 102 | D56: =Summewennfarbe(D12:D47,A64)+(0*NOW()) -> 102 | E56: =Summewennfarbe(E12:E47,A64)+(0*NOW()) -> 178 | F56: =Summewennfarbe(F12:F47,A64)+(0*NOW()) -> 102 | G56: 0 | H56: 0 | M56: =SUM(B56:H56) -> 586 | N56: =M56/60 -> 9.766666667 | P56: =M56*4.32 -> 2531.52 | Q56: =Q15+Q16+Q17+Q18+Q20+Q21+Q24+Q27+Q34+Q35+Q36+Q40+Q41+Q46 -> 22.032 | S56: =Summewennfarbe(S12:S47,A64)+(0*NOW()) -> 1.5
A57: Extern in min /Tag | B57: =Summewennfarbe(B12:B47,A65)+(0*NOW()) -> 150 | C57: =Summewennfarbe(C12:C47,A65)+(0*NOW()) -> 0 | D57: =Summewennfarbe(D12:D47,A65)+(0*NOW()) -> 40 | E57: =Summewennfarbe(E12:E47,A65)+(0*NOW()) -> 0 | F57: =Summewennfarbe(F12:F47,A65)+(0*NOW()) -> 40 | G57: =Summewennfarbe(G12:G47,A65)+(0*NOW()) -> 0 | H57: =Summewennfarbe(H12:H47,A65)+(0*NOW()) -> 0 | M57: =SUM(B57:H57) -> 230 | N57: =M57/60 -> 3.833333333 | P57: =M57*4.32 -> 993.6 | Q57: =Q26+Q28+Q29 -> 16.56 | S57: 21
A58: Summe in min /Tag | B58: =B55+B56+B57 -> 281 | C58: 131 | D58: 171 | E58: 207 | F58: 171 | G58: 79 | H58: 79 | M58: =M55+M56+M57 -> 1119 | N58: =N55+N56+N57 -> 18.65 | P58: =P55+P56+P57 -> 4834.08 | Q58: =Q55+Q56+Q57 -> 80.568 | S58: 22.5
A60: Zeitbedarf für Reinigung | D60: 19 | E60: Stunden/Woche | K60: 81 | L60: Stunden/Monat | P60: 103 | Q60: Stunden/Monat gesamt
E61: für tägl. Reinigung | L61: für tägl. Reinigung | Q61: für tägl. und monatl. Reinigung
A62: Legende:
A63: erledigt durch Kassamitarbeiter
A64: erledigt durch Beidienst
A65: extern vergeben

Sheet Reinigungsplan leer
A2: Reinigungsplan
A4: Tankstelle 1 mit Shop bis 80 m2 plus Bistro, Waschanlage und 2 SB Waschboxen und 3 SB Sauger
A5: Öffnungszeiten Mo-Fr von 5:00 bis 22:00 Uhr, Sa von 6:00 bis 22:00 Uhr, So von 7:00 bis 21:00 Uhr
S6: Eingabe
B7: in diesen Block den täglichen Zeitaufwand eintragen, | S7: Tätigkeiten
B8: die richtige Farbe zuordnen und "Summen aktualisieren" | M8: Zeitaufwand | P8: Zeitaufwand | S8: 1x/Monat
B9: tägl. | C9: tägl. | D9: tägl. | E9: tägl. | F9: tägl. | G9: tägl. | H9: tägl. | M9: Woche | N9: Woche | P9: Monat | Q9: Monat | S9: 1 x im Monat
B10: Mo | C10: Di | D10: Mi | E10: Do | F10: Fr | G10: Sa | H10: So | M10: Summe in min | N10: Sum in Std | P10: Sum/min | Q10: Sum/Std | S10: Sum/Std
A11: AUSSENANLAGE | B11: =SUM(B12:B24) -> 0 | C11: 0 | D11: 0 | E11: 0 | F11: 0 | G11: 0 | H11: 0 | M11: =SUM(B11:H11) -> 0 | N11: =M11/60 -> 0 | P11: =(M11*4.32) -> 0 | Q11: =P11/60 -> 0 | S11: =SUM(S12:S24) -> 0
A12: Wascheimer,Wasserkanne | M12: =SUM(B12:H12) -> 0 | N12: 0 | P12: =(M12*4.32) -> 0 | Q12: 0
A13: Papierspender,Handschuhe | M13: =SUM(B13:H13) -> 0 | N13: 0 | P13: 0 | Q13: 0
A14: Luftprüfer,Feuerlöscher | M14: =SUM(B14:H14) -> 0 | N14: 0 | P14: 0 | Q14: 0
A15: Zapfinsel/Pumpen | M15: 0 | N15: 0 | P15: 0 | Q15: 0
A16: Zapfpistolen,Schläuche | M16: 0 | N16: 0 | P16: 0 | Q16: 0
A17: Grünanlage(Unrat/Mähen) | M17: 0 | N17: 0 | P17: 0 | Q17: 0
M18: 0 | N18: 0 | P18: 0 | Q18: 0
A19: Abfallkübel | M19: =SUM(B19:H19) -> 0 | N19: 0 | P19: 0 | Q19: 0
A20: Staubsauger | M20: 0 | N20: 0 | P20: 0 | Q20: 0 | U20: 5
A21: Fahrbahn | M21: 0 | N21: 0 | P21: 0 | Q21: 0
M22: 0 | N22: 0 | P22: 0 | Q22: 0
A23: Plakat | M23: 0 | N23: 0 | P23: 0 | Q23: 0
A24: Beleuchtung | M24: 0 | N24: 0 | P24: 0 | Q24: 0
A25: WASCHHALLE | B25: =SUM(B26:B29) -> 0 | C25: =SUM(C26:C29) -> 0 | D25: 0 | E25: 0 | F25: 0 | G25: 0 | H25: 0 | M25: =SUM(B25:H25) -> 0 | N25: 0 | P25: 0 | Q25: 0 | S25: =SUM(S26:S29) -> 0
A26: Waschhalle Boden/Wände | M26: =SUM(B26:H26) -> 0 | N26: 0 | P26: =(M26*4.32) -> 0 | Q26: 0
A27: Portalmaschine | M27: 0 | N27: 0 | P27: 0 | Q27: 0
A28: SB-Anlage | M28: =SUM(B28:H28) -> 0 | N28: 0 | P28: 0 | Q28: 0
A29: Chemie SB+Waschanlage | M29: =SUM(B29:H29) -> 0 | N29: 0 | P29: =(M29*4.32) -> 0 | Q29: 0
A30: WC | B30: =SUM(B31:B36) -> 0 | C30: =SUM(C31:C36) -> 0 | D30: 0 | E30: 0 | F30: 0 | G30: 0 | H30: 0 | M30: =SUM(B30:H30) -> 0 | N30: 0 | P30: 0 | Q30: 0 | S30: =SUM(S31:S36) -> 0
A31: Toilettpapier | M31: 0 | N31: 0 | P31: 0 | Q31: 0
A32: Abfalleimer | M32: 0 | N32: 0 | P32: 0 | Q32: 0
A33: Handtuch,Seife | M33: 0 | N33: 0 | P33: 0 | Q33: 0
A34: Waschbecken,Spiegel | M34: 0 | N34: 0 | P34: 0 | Q34: 0
A35: WC | M35: 0 | N35: 0 | P35: 0 | Q35: 0
A36: Fussboden | M36: 0 | N36: 0 | P36: 0 | Q36: 0
A37: SHOP | B37: =SUM(B38:B41) -> 0 | C37: =SUM(C38:C41) -> 0 | D37: 0 | E37: 0 | F37: 0 | G37: 0 | H37: 0 | M37: =SUM(B37:H37) -> 0 | N37: 0 | P37: 0 | Q37: 0 | S37: =SUM(S38:S41) -> 0
A38: Papierkorb | M38: =SUM(B38:H38) -> 0 | N38: 0 | P38: 0 | Q38: 0
A39: Fussboden | M39: =SUM(B39:H39) -> 0 | N39: 0 | P39: 0 | Q39: 0
A40: Beleuchtung | M40: 0 | N40: 0 | P40: 0 | Q40: 0
M41: 0 | N41: 0 | P41: 0 | Q41: 0
A42: LAGER-Technik | B42: =SUM(B43:B47) -> 0 | C42: =SUM(C43:C47) -> 0 | D42: 0 | E42: 0 | F42: 0 | G42: 0 | H42: 0 | M42: =SUM(B42:H42) -> 0 | N42: 0 | P42: 0 | Q42: 0 | S42: =SUM(S43:S47) -> 0
A43: Kompressor | M43: 0 | N43: 0 | P43: 0 | Q43: 0
A44: Recycling | M44: 0 | N44: 0 | P44: 0 | Q44: 0
A45: Benzinabscheider | M45: 0 | N45: 0 | P45: 0 | Q45: 0
A46: Lager | M46: 0 | N46: 0 | P46: =(M46*4.32) -> 0 | Q46: 0
M47: 0 | N47: 0 | P47: 0 | Q47: 0
B49: tägl. | C49: tägl. | D49: tägl. | E49: tägl. | F49: tägl. | G49: tägl. | H49: tägl. | M49: Woche | N49: Woche | P49: Monat | Q49: Monat | S49: 1 x im Monat
B50: Mo | C50: Di | D50: Mi | E50: Do | F50: Fr | G50: Sa | H50: So | M50: Sum/min | N50: Sum/Std | P50: Sum/min | Q50: Sum/Std | S50: Sum/Std
A51: Summe in min /Tag | B51: =B11+B30+B25+B37+B42 -> 0 | C51: 0 | D51: 0 | E51: 0 | F51: =F11+F30+F25+F37+F42 -> 0 | G51: 0 | H51: 0 | M51: =SUM(B51:H51) -> 0 | N51: =M51/60 -> 0 | P51: =(M51*4.32) -> 0 | Q51: =P51/60 -> 0 | S51: =S11+S30+S25+S37+S42 -> 0
A52: Summe in Std /Tag | B52: =B51/60 -> 0 | C52: =C51/60 -> 0 | D52: 0 | E52: 0 | F52: 0 | G52: 0 | H52: 0
M53: Woche | N53: Woche | P53: Monat | Q53: Monat | S53: 1 x im Monat
B54: Sum/min | C54: Sum/min | D54: Sum/min | E54: Sum/min | F54: Sum/min | G54: Sum/min | H54: Sum/min | M54: Sum/min | N54: Sum/Std | P54: Sum/min | Q54: Sum/Std | S54: Sum/Std
A55: Kassamitarbeiter in min/Tag | B55: =Summewennfarbe(B12:B47,A63)+(0*NOW()) -> 0 | C55: =Summewennfarbe(C12:C47,A63)+(0*NOW()) -> 0 | D55: =Summewennfarbe(D12:D47,A63)+(0*NOW()) -> 0 | E55: =Summewennfarbe(E12:E47,A63)+(0*NOW()) -> 0 | F55: =Summewennfarbe(F12:F47,A63)+(0*NOW()) -> 0 | G55: =Summewennfarbe(G12:G47,A63)+(0*NOW()) -> 0 | H55: =Summewennfarbe(H12:H47,A63)+(0*NOW()) -> 0 | M55: =SUM(B55:H55) -> 0 | N55: =M55/60 -> 0 | P55: =M55*4.32 -> 0 | Q55: =Q12+Q13+Q14+Q22+Q23+Q31+Q32+Q33+Q38+Q19+Q39 -> 0 | S55: =Summewennfarbe(S12:S47,A63)+(0*NOW()) -> 0
A56: Beidienst in min /Tag | B56: =Summewennfarbe(B12:B47,A64)+(0*NOW()) -> 0 | C56: =Summewennfarbe(C12:C47,A64)+(0*NOW()) -> 0 | D56: =Summewennfarbe(D12:D47,A64)+(0*NOW()) -> 0 | E56: =Summewennfarbe(E12:E47,A64)+(0*NOW()) -> 0 | F56: =Summewennfarbe(F12:F47,A64)+(0*NOW()) -> 0 | G56: =Summewennfarbe(G12:G47,A64)+(0*NOW()) -> 0 | H56: =Summewennfarbe(H12:H47,A64)+(0*NOW()) -> 0 | M56: =SUM(B56:H56) -> 0 | N56: =M56/60 -> 0 | P56: =M56*4.32 -> 0 | Q56: =Q15+Q16+Q17+Q18+Q20+Q21+Q24+Q27+Q34+Q35+Q36+Q40+Q41+Q46 -> 0 | S56: =Summewennfarbe(S12:S47,A64)+(0*NOW()) -> 0
A57: Extern in min /Tag | B57: =Summewennfarbe(B12:B47,A65)+(0*NOW()) -> 0 | C57: =Summewennfarbe(C12:C47,A65)+(0*NOW()) -> 0 | D57: =Summewennfarbe(D12:D47,A65)+(0*NOW()) -> 0 | E57: =Summewennfarbe(E12:E47,A65)+(0*NOW()) -> 0 | F57: =Summewennfarbe(F12:F47,A65)+(0*NOW()) -> 0 | G57: =Summewennfarbe(G12:G47,A65)+(0*NOW()) -> 0 | H57: =Summewennfarbe(H12:H47,A65)+(0*NOW()) -> 0 | M57: =SUM(B57:H57) -> 0 | N57: =M57/60 -> 0 | P57: =M57*4.32 -> 0 | Q57: =Q26+Q28+Q29 -> 0 | S57: =Summewennfarbe(S12:S47,A65)+(0*NOW()) -> 0
A58: Summe in min /Tag | B58: =B55+B56+B57 -> 0 | C58: 0 | D58: 0 | E58: 0 | F58: 0 | G58: 0 | H58: 0 | M58: =M55+M56+M57 -> 0 | N58: =N55+N56+N57 -> 0 | P58: =P55+P56+P57 -> 0 | Q58: =Q55+Q56+Q57 -> 0 | S58: =S55+S56+S57 -> 0
A60: Zeitbedarf für Reinigung | D60: 0 | E60: Stunden/Woche | K60: 0 | L60: Stunden/Monat | P60: =K60+S51 -> 0 | Q60: Stunden/Monat gesamt | U60: 100
E61: für tägl. Reinigung | L61: für tägl. Reinigung | Q61: für tägl. und monatl. Reinigung
A62: Legende:
A63: erledigt durch Kassamitarbeiter
A64: erledigt durch Beidienst
A65: extern vergeben

Sheet Beschreibung
A2: Der Reinigungsplan soll bewusst machen, welche Vielzahl an Reinigungstätigkeiten eigentlich anfallen, die im Geschäftsplan zu berücksichtigen sind.
A4: Mit diesem Berechnungsmodell kann der tägliche, wöchentliche und monatliche Reinigungsbedarf ermittelt werden.
A6: Einzugeben ist lediglich der tägliche Zeitaufwand für bestimmte Reinigungstätigkeiten sowie der zusätzlich 1x monatlich anfallende Zeitaufwand.
A8: Dabei ist eine Aufteilung des Zeitaufwands auf einzelnen Mitarbeiter/Mitarbeiterkategorien durch die individuelle farbliche Zuordnung
A9: gelb, orange oder grün darstellbar. Bitte keine anderen Farben verwenden.
A10: Im Reinigungsplan für die Mustertankstelle erfolgt die Zuordnung auf die Mitarbeiterkategorien Kassadienst, Beidienst und
A11: externe Erledigung.
A13: Sollten nach öffnen der Datei die Formeln unten fehlerhaft dargestellt sein, muss die Bearbeitung der Datei aktiviert werden (siehe Reiter
A14: "Hilfe bei Fehler Erstöffnung".

Sheet Hilfe bei Fehler Erstöffnung
